fUST/lending_fUST_20250815
["ID","MTS","AMOUNT","RATE_DAILY","PERIOD"]
[379414222,1755271847194,-420.0,0.0001966,2]
[379414224,1755271847203,-500.0,0.00019715,2]
[379414226,1755271847212,-500.0,0.00019715,2]
[379414228,1755271847222,-684.58453738,0.00019726,2]
[379414230,1755271847231,-595.77,0.00019726,2]
[379414232,1755271847240,-460.0,0.00019726,2]
[379414234,1755271847249,-460.0,0.00019726,2]
[379414236,1755271847258,-460.0,0.00019726,2]
[379414238,1755271847268,-460.0,0.00019726,2]
[379414240,1755271847277,-1284.11,0.00019726,2]
[379414242,1755271847286,-460.0,0.00019726,2]
[379414244,1755271847296,-471.39,0.00019726,2]
[379414246,1755271847305,-460.0,0.00019726,2]
[379414248,1755271847315,-460.0,0.00019726,2]
[379414250,1755271847325,-460.0,0.00019726,2]
[379414252,1755271847334,-1407.9,0.00019726,2]
[379414254,1755271847343,-460.0,0.00019726,2]
[379414256,1755271847353,-8886.89,0.00019726,2]
[379414258,1755271847362,-1054.5,0.00019726,2]
[379414260,1755271847371,-1142.0,0.00019757,2]
[379414262,1755271847380,-521.694215,0.000198,2]
[379414264,1755271847389,-521.694215,0.000198,2]
[379414266,1755271847399,-500.0,0.00019881,2]
[379414268,1755271847408,-2202.08,0.00019889,2]
[379414270,1755271847418,-151.0,0.000199,2]
[379414272,1755271847430,-151.0,0.000199,2]
[379414274,1755271847440,-521.694215,0.000199,2]
[379414276,1755271847449,-521.694215,0.000199,2]
[379414278,1755271847459,-205.650753,0.000199,2]
[379414280,1755271847468,-205.650753,0.000199,2]
[379414282,1755271847477,-24041.60902249,0.000199,2]
[379414284,1755271847487,-23760.30954268,0.000199,2]
[379417961,1755271959011,-150.885253,0.000234,30]
[379417962,1755271959036,-150.885253,0.00023675,30]
[379417963,1755271959057,-3717.37980049,0.000237,30]
[379417964,1755271959080,-150.885253,0.0002395,30]
[379417965,1755271959100,-1357.7328073,0.00024,60]
[379417967,1755271959120,-973.40524479,0.00024,30]
[379417968,1755271959726,-3849.40094933,0.00024,30]
[379417969,1755271959803,-1678.36741746,0.00024,30]
[379417970,1755271959828,-150.885253,0.00024225,30]
[379417971,1755271959852,-150.885253,0.000245,30]
[379417972,1755271959876,-2594.17490784,0.000249,30]
[379417981,1755272044864,3046.54334025,0.00016439,2]
[379417984,1755272110021,2026.43,0.00030137,120]
[379417986,1755272124234,3488786.31564472,0.00030137,120]
[379418017,1755272236052,160.002794,0.00013699,2]
[379418033,1755272564247,150.885253,0.00023675,30]
[379418035,1755272622860,150.885253,0.000232,30]
[379418036,1755272623151,150.885253,0.000224,30]
[379418037,1755272623469,150.885253,0.000216,30]
[379418057,1755272828118,-181.62430047,0.00017474,2]
[379418058,1755272839105,2511631.06823749,0.00028462,60]
[379418061,1755272880536,2878012.12016298,0.00026,120]
[379418067,1755272911356,150.0,0.00022957,30]
[379418068,1755272911556,3000000.0,0.00025,120]
[379418069,1755272922557,5000000.0,0.00024,120]
[379418070,1755272922580,1357.7328073,0.00024,120]
[379418090,1755272971135,-560.546514,0.000173,2]
[379418091,1755272971156,-41.10924553,0.00017474,2]
[379418092,1755272971178,-180.61207087,0.00017611,2]
[379418137,1755273037940,-68.70215406,0.00017611,2]
[379418140,1755273037950,-303.44203,0.00017903,2]
[379418143,1755273037961,-209.823976,0.00017991,2]
[379418145,1755273037973,-159.718011,0.00017992,2]
[379418148,1755273037983,-158.83172296,0.00018448,2]
[379418150,1755273037992,-168.1155926,0.00018453,2]
[379418152,1755273038004,-131.8844074,0.00018453,2]
[379418154,1755273038014,-774.60339312,0.00018453,2]
[379418156,1755273038026,-425.39660688,0.00018453,2]
[379418158,1755273038036,-297.58339312,0.00018454,2]
[379418161,1755273038050,-2.41660688,0.00018454,2]
[379418163,1755273038060,-300.0,0.00018454,2]
[379418165,1755273038070,-138.78339312,0.00018454,2]
[379418167,1755273038081,-161.21660688,0.00018454,2]
[379418169,1755273038091,-300.0,0.00018454,2]
[379418171,1755273038101,-300.0,0.00018454,2]
[379418174,1755273038110,-500.0,0.00018455,2]
[379418176,1755273038123,-187.30479887,0.00018455,2]
[379418178,1755273038134,-527.35546282,0.00018455,2]
[379418180,1755273038144,-500.0,0.00018455,2]
[379418182,1755273038154,-239.9164342,0.00018455,2]
[379418184,1755273038164,-500.0,0.00018455,2]
[379418186,1755273038173,-291.3858727,0.00018455,2]
[379418188,1755273038183,-154.0,0.00018455,2]
[379418190,1755273038193,-43133.34413075,0.00018456,2]
[379418192,1755273038204,-6866.65586925,0.00018456,2]
[379418194,1755273038215,-726.0,0.00018456,2]
[379418196,1755273038224,-158.83172296,0.00018458,2]
[379418213,1755273038373,-4439.36747579,0.00018473,2]
[379418215,1755273038384,-333.3186535,0.00018473,2]
[379418217,1755273038396,-2332.86599459,0.00018473,2]
[379418219,1755273038408,-5839.88780177,0.00018473,2]
[379418307,1755273039055,-3181.61952087,0.00018473,2]
[379418309,1755273039065,-456.7,0.00018548,3]
[379418311,1755273039075,-81.68047932,0.00018548,3]
[379418313,1755273039089,-146.66952068,0.00018548,3]
[379418315,1755273039100,-685.09,0.00018548,3]
[379418317,1755273039110,-500.0,0.00018557,2]
[379418319,1755273039122,-530.66916346,0.00018557,2]
[379418321,1755273039133,-242.37186731,0.00018557,2]
[379418323,1755273039143,-530.66916346,0.00018557,2]
[379418325,1755273039152,-530.66916346,0.00018557,2]
[379418327,1755273039162,-530.66916346,0.00018557,2]
[379418329,1755273039172,-530.66916346,0.00018557,2]
[379418331,1755273039182,-530.66916346,0.00018557,2]
[379418333,1755273039191,-530.66916346,0.00018557,2]
[379418335,1755273039201,-530.66916346,0.00018557,2]
[379418337,1755273039210,-530.66916346,0.00018557,2]
[379418339,1755273039219,-530.66916346,0.00018557,2]
[379418341,1755273039229,-530.66916346,0.00018557,2]
[379418343,1755273039238,-530.66916346,0.00018557,2]
[379418345,1755273039247,-530.66916347,0.00018557,2]
[379418347,1755273039256,-530.66916347,0.00018557,2]
[379418349,1755273039266,-530.66916347,0.00018557,2]
[379418351,1755273039275,-530.66916347,0.00018557,2]
[379418353,1755273039284,-530.66916347,0.00018557,2]
[379418355,1755273039293,-530.66916347,0.00018557,2]
[379418357,1755273039301,-530.66916347,0.00018557,2]
[379418359,1755273039311,-530.66916347,0.00018557,2]
[379418361,1755273039320,-530.66916347,0.00018557,2]
[379418362,1755273039329,-530.66916347,0.00018557,2]
[379418364,1755273039339,-541.28254673,0.00018557,2]
[379418366,1755273039348,-541.28254673,0.00018557,2]
[379418368,1755273039357,-541.28254673,0.00018557,2]
[379418370,1755273039366,-541.28254673,0.00018557,2]
[379418372,1755273039377,-541.28254673,0.00018557,2]
[379418374,1755273039387,-637.20280239,0.00018558,2]
[379418386,1755273039499,-5806.05445805,0.00018558,2]
[379418387,1755273039511,-16822.97697393,0.00018558,2]
[379418388,1755273039522,-268.1996,0.00018558,2]
[379418389,1755273039533,-8849.01242095,0.00018558,2]
[379418390,1755273039543,-15119.38183508,0.00018558,2]
[379418391,1755273039554,-5085.28764001,0.00018558,2]
[379418392,1755273039565,-398.04150106,0.00018558,2]
[379418393,1755273039575,-25712.73214357,0.00018558,2]
[379418394,1755273039588,-2093.62556752,0.00018558,2]
[379418395,1755273039599,-3974.63925505,0.00018558,2]
[379418469,1755273040612,-4000.0,0.00018558,2]
[379418471,1755273040627,-1291.65754788,0.00018558,2]
[379418485,1755273040754,-33754.99999999,0.00018558,2]
[379418501,1755273040914,-2958.83878849,0.00018558,2]
[379418619,1755273043579,-30414.47053709,0.00018558,2]
[379418622,1755273043590,-12718.8714128,0.00018558,2]
[379418624,1755273043602,-153230.35300308,0.00018558,2]
[379418626,1755273043611,-500.0,0.00018573,2]
[379418628,1755273043620,-500.0,0.00018573,2]
[379418630,1755273043631,-500.0,0.00018573,2]
[379418632,1755273043640,-500.0,0.00018573,2]
[379418634,1755273043649,-500.0,0.00018573,2]
[379418636,1755273043659,-500.0,0.00018573,2]
[379418638,1755273043668,-500.0,0.00018573,2]
[379418640,1755273043677,-500.0,0.00018573,2]
[379418642,1755273043686,-322.9135319,0.00018573,2]
[379418644,1755273043695,-500.0,0.00018573,2]
[379418646,1755273043704,-500.0,0.00018573,2]
[379418648,1755273043713,-500.0,0.00018573,2]
[379418650,1755273043722,-251.16063819,0.00018573,2]
[379418652,1755273043731,-1000.0,0.00018658,2]
[379418655,1755273043741,-1000.0,0.00018658,2]
[379418657,1755273043750,-1000.0,0.00018658,2]
[379418658,1755273043759,-1000.0,0.00018658,2]
[379418660,1755273043769,-895.84278253,0.00018658,2]
[379418663,1755273043779,-200.0,0.00018825,20]
[379418664,1755273043788,-200.0,0.00018825,20]
[379418666,1755273043799,-200.0,0.00018825,20]
[379418668,1755273043808,-200.0,0.00018825,20]
[379418671,1755273043818,-200.0,0.00018825,20]
[379418672,1755273043828,-200.0,0.00018825,20]
[379418675,1755273043837,-3670.69165046,0.00019105,2]
[379418677,1755273043847,-1000.0,0.00019121,2]
[379418679,1755273043857,-261.11509113,0.00019121,2]
[379418681,1755273043866,-1000.0,0.00019121,2]
[379418683,1755273043876,-500.0,0.00019173,2]
[379418685,1755273043886,-500.0,0.00019173,2]
[379418687,1755273043895,-500.0,0.00019173,2]
[379418689,1755273043904,-516.7285694,0.00019173,2]
[379418691,1755273043913,-633.27082566,0.00019173,2]
[379418692,1755273043923,-502.38628705,0.00019173,2]
[379418695,1755273043932,-500.0,0.00019173,2]
[379418697,1755273043941,-500.0,0.00019173,2]
[379418698,1755273043951,-496.58296905,0.00019173,2]
[379418700,1755273043960,-500.0,0.00019173,2]
[379418703,1755273043972,-450.0687685,0.00019173,2]
[379418704,1755273043982,-500.0,0.00019173,2]
[379418707,1755273043991,-500.0,0.00019173,2]
[379418708,1755273044000,-500.0,0.00019173,2]
[379418710,1755273044010,-500.0,0.00019173,2]
[379418712,1755273044019,-500.0,0.00019173,2]
[379418715,1755273044029,-500.0,0.00019173,2]
[379418717,1755273044039,-500.54007216,0.00019173,2]
[379418719,1755273044050,-500.0,0.00019173,2]
[379418720,1755273044059,-500.49278925,0.00019173,2]
[379418722,1755273044068,-500.0,0.00019173,2]
[379418724,1755273044077,-500.0,0.00019173,2]
[379418727,1755273044087,-500.0,0.00019173,2]
[379418729,1755273044096,-500.0,0.00019173,2]
[379418731,1755273044106,-288.45728023,0.00019173,2]
[379418732,1755273044115,-500.0,0.00019173,2]
[379418735,1755273044125,-206.17399241,0.00019173,2]
[379418736,1755273044134,-500.0,0.00019173,2]
[379418738,1755273044143,-500.0,0.00019173,2]
[379418740,1755273044153,-158.57994846,0.00019173,2]
[379418742,1755273044162,-500.0,0.00019173,2]
[379418744,1755273044171,-500.0,0.00019173,2]
[379418746,1755273044182,-500.0,0.00019173,2]
[379418748,1755273044192,-500.0,0.00019173,2]
[379418750,1755273044201,-500.0,0.00019173,2]
[379418752,1755273044210,-501.57858725,0.00019173,2]
[379418754,1755273044219,-500.0,0.00019173,2]
[379418756,1755273044228,-500.0,0.00019173,2]
[379418758,1755273044238,-500.92954421,0.00019173,2]
[379418760,1755273044248,-500.0,0.00019173,2]
[379418762,1755273044257,-500.0,0.00019173,2]
[379418764,1755273044266,-500.0,0.00019173,2]
[379418766,1755273044275,-500.0,0.00019173,2]
[379418768,1755273044284,-500.0,0.00019173,2]
[379418770,1755273044294,-500.0,0.00019173,2]
[379418772,1755273044303,-500.0,0.00019173,2]
[379418774,1755273044312,-500.0,0.00019173,2]
[379418776,1755273044321,-500.0,0.00019173,2]
[379418778,1755273044330,-500.0,0.00019173,2]
[379418780,1755273044340,-500.0,0.00019173,2]
[379418782,1755273044349,-500.0,0.00019173,2]
[379418784,1755273044360,-500.0,0.00019173,2]
[379418786,1755273044369,-500.0,0.00019173,2]
[379418788,1755273044380,-509.43701415,0.00019173,2]
[379418790,1755273044389,-460.0,0.00019178,2]
[379418792,1755273044398,-460.0,0.00019178,2]
[379418794,1755273044408,-460.55940611,0.00019178,2]
[379418796,1755273044418,-448.74976641,0.00019178,2]
[379418798,1755273044428,-460.0,0.00019178,2]
[379418800,1755273044437,-460.0,0.00019178,2]
[379418802,1755273044447,-574.64034321,0.00019178,2]
[379418804,1755273044457,-460.0,0.00019178,2]
[379418806,1755273044467,-460.78275101,0.00019178,2]
[379418808,1755273044476,-460.0,0.00019178,2]
[379418810,1755273044486,-460.0,0.00019178,2]
[379418812,1755273044495,-460.0,0.00019178,2]
[379418814,1755273044505,-460.0,0.00019178,2]
[379418816,1755273044515,-460.51894854,0.00019178,2]
[379418818,1755273044524,-460.0,0.00019178,2]
[379418820,1755273044534,-460.0,0.00019178,2]
[379418822,1755273044544,-460.0,0.00019178,2]
[379418824,1755273044553,-460.0,0.00019178,2]
[379418826,1755273044563,-460.0,0.00019178,2]
[379418828,1755273044572,-460.0,0.00019178,2]
[379418830,1755273044581,-526.02565955,0.00019178,2]
[379418832,1755273044590,-463.687172,0.00019178,2]
[379418834,1755273044600,-460.64618476,0.00019178,2]
[379418836,1755273044609,-460.0,0.00019178,2]
[379418838,1755273044618,-460.0,0.00019178,2]
[379418840,1755273044631,-467.98867287,0.00019178,2]
[379418842,1755273044640,-460.0,0.00019178,2]
[379418844,1755273044650,-460.0,0.00019178,2]
[379418846,1755273044659,-460.0,0.00019178,2]
[379418848,1755273044668,-460.355042,0.00019178,2]
[379418850,1755273044681,-460.0,0.00019178,2]
[379418852,1755273044691,-460.0,0.00019178,2]
[379418854,1755273044701,-460.0,0.00019178,2]
[379418856,1755273044713,-461.23291449,0.00019178,2]
[379418858,1755273044725,-460.0,0.00019178,2]
[379418860,1755273044735,-460.0,0.00019178,2]
[379418862,1755273044744,-460.0,0.00019178,2]
[379418864,1755273044753,-461.14793825,0.00019178,2]
[379418866,1755273044763,-461.82624395,0.00019178,2]
[379418868,1755273044772,-460.0,0.00019178,2]
[379418870,1755273044782,-466.75195852,0.00019178,2]
[379418872,1755273044791,-460.0,0.00019178,2]
[379418874,1755273044800,-460.0,0.00019178,2]
[379418876,1755273044809,-460.0,0.00019178,2]
[379418878,1755273044819,-460.0,0.00019178,2]
[379418880,1755273044828,-460.0,0.00019178,2]
[379418882,1755273044837,-514.95147245,0.00019178,2]
[379418884,1755273044847,-460.0,0.00019178,2]
[379418886,1755273044856,-460.85978148,0.00019178,2]
[379418888,1755273044866,-460.0,0.00019178,2]
[379418890,1755273044878,-460.0,0.00019178,2]
[379418892,1755273044887,-1000.0,0.00019178,2]
[379418894,1755273044897,-461.15590411,0.00019178,2]
[379418896,1755273044907,-460.0,0.00019178,2]
[379418898,1755273044916,-461.76506862,0.00019178,2]
[379418900,1755273044926,-463.06402518,0.00019178,2]
[379418902,1755273044935,-461.15994066,0.00019178,2]
[379418904,1755273044945,-461.43263622,0.00019178,2]
[379418906,1755273044954,-460.5788418,0.00019178,2]
[379418908,1755273044965,-461.19605814,0.00019178,2]
[379418910,1755273044978,-462.05756361,0.00019178,2]
[379418912,1755273044988,-462.90091356,0.00019178,2]
[379418914,1755273044997,-462.6116394,0.00019178,2]
[379418916,1755273045007,-462.13490131,0.00019178,2]
[379418918,1755273045016,-460.0,0.00019178,2]
[379418920,1755273045026,-460.0,0.00019178,2]
[379418922,1755273045035,-461.33574219,0.00019178,2]
[379418924,1755273045044,-461.59361356,0.00019178,2]
[379418926,1755273045054,-460.49642858,0.00019178,2]
[379418928,1755273045063,-461.2280318,0.00019178,2]
[379418930,1755273045072,-460.87911682,0.00019178,2]
[379418931,1755273045081,-460.0,0.00019178,2]
[379418933,1755273045090,-461.04674529,0.00019178,2]
[379418935,1755273045100,-460.0,0.00019178,2]
[379418937,1755273045109,-465.94819299,0.00019178,2]
[379418939,1755273045118,-464.93366102,0.00019178,2]
[379418941,1755273045131,-461.08199932,0.00019178,2]
[379418943,1755273045140,-460.61514151,0.00019178,2]
[379418945,1755273045149,-460.0,0.00019178,2]
[379418947,1755273045158,-461.37479086,0.00019178,2]
[379418949,1755273045168,-460.0,0.00019178,2]
[379418951,1755273045177,-571.94776508,0.00019178,2]
[379418953,1755273045186,-521.68937955,0.00019178,2]
[379418955,1755273045196,-460.0,0.00019178,2]
[379418958,1755273045205,-461.87156979,0.00019178,2]
[379418960,1755273045214,-460.48524267,0.00019178,2]
[379418962,1755273045224,-460.0,0.00019178,2]
[379418963,1755273045233,-460.0,0.00019178,2]
[379418965,1755273045243,-460.40537247,0.00019178,2]
[379418967,1755273045252,-462.88519975,0.00019178,2]
[379418969,1755273045262,-460.0,0.00019178,2]
[379418972,1755273045272,-461.7580068,0.00019178,2]
[379418973,1755273045281,-460.0,0.00019178,2]
[379418975,1755273045290,-462.77364927,0.00019178,2]
[379418977,1755273045299,-460.0,0.00019178,2]
[379418979,1755273045309,-460.0,0.00019178,2]
[379418981,1755273045318,-460.0,0.00019178,2]
[379418983,1755273045327,-461.03973688,0.00019178,2]
[379418985,1755273045336,-460.0,0.00019178,2]
[379418987,1755273045345,-464.98611621,0.00019178,2]
[379418989,1755273045355,-460.0,0.00019178,2]
[379418991,1755273045364,-465.97126011,0.00019178,2]
[379418993,1755273045373,-460.0,0.00019178,2]
[379418995,1755273045383,-460.0,0.00019178,2]
[379418997,1755273045394,-460.0,0.00019178,2]
[379418999,1755273045404,-460.0,0.00019178,2]
[379419001,1755273045413,-460.0,0.00019178,2]
[379419003,1755273045422,-460.0,0.00019178,2]
[379419005,1755273045437,-460.0,0.00019178,2]
[379419008,1755273045446,-460.81595741,0.00019178,2]
[379419009,1755273045456,-460.0,0.00019178,2]
[379419012,1755273045466,-460.0,0.00019178,2]
[379419014,1755273045475,-460.0,0.00019178,2]
[379419015,1755273045484,-460.0,0.00019178,2]
[379419017,1755273045494,-460.73808277,0.00019178,2]
[379419019,1755273045503,-460.0,0.00019178,2]
[379419021,1755273045513,-460.0,0.00019178,2]
[379419023,1755273045522,-460.0,0.00019178,2]
[379419025,1755273045532,-601.52,0.00019178,2]
[379419027,1755273045542,-460.0,0.00019178,2]
[379419029,1755273045552,-464.90674422,0.00019178,2]
[379419031,1755273045561,-460.0,0.00019178,2]
[379419033,1755273045571,-525.46578648,0.00019178,2]
[379419035,1755273045580,-460.0,0.00019178,2]
[379419037,1755273045590,-464.90814462,0.00019178,2]
[379419039,1755273045599,-461.78878274,0.00019178,2]
[379419041,1755273045608,-463.32879581,0.00019178,2]
[379419043,1755273045617,-463.53955917,0.00019178,2]
[379419045,1755273045626,-460.0,0.00019178,2]
[379419047,1755273045635,-604.55744259,0.00019178,2]
[379419049,1755273045645,-472.77088574,0.00019178,2]
[379419063,1755273045766,-461.75102285,0.00019178,2]
[379419066,1755273045779,-460.0,0.00019178,2]
[379419068,1755273045788,-460.96887652,0.00019178,2]
[379419070,1755273045798,-464.6167897,0.00019178,2]
[379419072,1755273045808,-465.1367722,0.00019178,2]
[379419074,1755273045817,-460.0,0.00019178,2]
[379419076,1755273045827,-461.8276367,0.00019178,2]
[379419078,1755273045836,-465.85646917,0.00019178,2]
[379419080,1755273045846,-461.78500559,0.00019178,2]
[379419082,1755273045856,-460.0,0.00019178,2]
[379419084,1755273045866,-460.0,0.00019178,2]
[379419086,1755273045877,-460.0,0.00019178,2]
[379419088,1755273045887,-460.0,0.00019178,2]
[379419091,1755273045896,-464.74788078,0.00019178,2]
[379419093,1755273045906,-463.38194712,0.00019178,2]
[379419095,1755273045915,-463.72602179,0.00019178,2]
[379419097,1755273045925,-464.96018152,0.00019178,2]
[379419098,1755273045934,-460.0,0.00019178,2]
[379419099,1755273045944,-460.0,0.00019178,2]
[379419100,1755273045953,-460.0,0.00019178,2]
[379419101,1755273045964,-460.0,0.00019178,2]
[379419102,1755273045978,-460.0,0.00019178,2]
[379419103,1755273045988,-460.0,0.00019178,2]
[379419104,1755273045998,-460.0,0.00019178,2]
[379419105,1755273046008,-462.83163684,0.00019178,2]
[379419106,1755273046017,-460.0,0.00019178,2]
[379419107,1755273046026,-460.0,0.00019178,2]
[379419109,1755273046035,-461.00623345,0.00019178,2]
[379419110,1755273046045,-460.60923691,0.00019178,2]
[379419111,1755273046054,-462.58521817,0.00019178,2]
[379419112,1755273046064,-461.95569121,0.00019178,2]
[379419113,1755273046073,-460.0,0.00019178,2]
[379419114,1755273046082,-239.46284029,0.00019178,2]
[379419115,1755273046102,-220.73908949,0.00019178,2]
[379419116,1755273046111,-460.0,0.00019178,2]
[379419117,1755273046121,-460.0,0.00019178,2]
[379419119,1755273046133,-462.07847331,0.00019178,2]
[379419121,1755273046143,-469.45198186,0.00019178,2]
[379419123,1755273046152,-460.0,0.00019178,2]
[379419125,1755273046162,-460.0,0.00019178,2]
[379419127,1755273046171,-462.20809951,0.00019178,2]
[379419129,1755273046179,-461.12433401,0.00019178,2]
[379419130,1755273046188,-460.0,0.00019178,2]
[379419132,1755273046197,-460.0,0.00019178,2]
[379419134,1755273046206,-460.72323671,0.00019178,2]
[379419136,1755273046216,-460.0,0.00019178,2]
[379419138,1755273046225,-460.0,0.00019178,2]
[379419140,1755273046235,-460.0,0.00019178,2]
[379419142,1755273046245,-460.0,0.00019178,2]
[379419145,1755273046255,-460.0,0.00019178,2]
[379419147,1755273046264,-460.0,0.00019178,2]
[379419149,1755273046275,-577.68,0.00019178,2]
[379419150,1755273046285,-461.10237328,0.00019178,2]
[379419152,1755273046294,-460.0,0.00019178,2]
[379419154,1755273046304,-460.0,0.00019178,2]
[379419156,1755273046315,-460.0,0.00019178,2]
[379419158,1755273046325,-460.0,0.00019178,2]
[379419160,1755273046334,-462.38154483,0.00019178,2]
[379419162,1755273046345,-460.0,0.00019178,2]
[379419164,1755273046355,-461.29689264,0.00019178,2]
[379419166,1755273046365,-461.74364525,0.00019178,2]
[379419168,1755273046375,-460.89228693,0.00019178,2]
[379419170,1755273046387,-479.35328352,0.00019178,2]
[379419172,1755273046397,-463.37426668,0.00019178,2]
[379419174,1755273046406,-460.0,0.00019178,2]
[379419176,1755273046416,-464.97454503,0.00019178,2]
[379419178,1755273046426,-460.0,0.00019178,2]
[379419180,1755273046436,-460.0,0.00019178,2]
[379419182,1755273046446,-500.0,0.00019178,2]
[379419184,1755273046455,-500.0,0.00019178,2]
[379419186,1755273046464,-460.0,0.00019178,2]
[379419188,1755273046474,-502.52859319,0.00019178,2]
[379419190,1755273046483,-470.42618697,0.00019178,2]
[379419192,1755273046493,-460.51946107,0.00019178,2]
[379419194,1755273046502,-567.98593703,0.00019178,2]
[379419196,1755273046511,-460.0,0.00019178,2]
[379419198,1755273046520,-464.6133838,0.00019178,2]
[379419200,1755273046530,-483.87,0.00019178,2]
[379419202,1755273046539,-460.0,0.00019178,2]
[379419204,1755273046548,-461.46880678,0.00019178,2]
[379419206,1755273046558,-460.0,0.00019178,2]
[379419208,1755273046567,-461.14689207,0.00019178,2]
[379419210,1755273046577,-460.0,0.00019178,2]
[379419212,1755273046586,-411.17715843,0.00019178,2]
[379419214,1755273046595,-467.39990837,0.00019178,2]
[379419216,1755273046605,-461.87784233,0.00019178,2]
[379419218,1755273046615,-502.13349793,0.00019178,2]
[379419220,1755273046624,-460.0,0.00019178,2]
[379419221,1755273046634,-460.0,0.00019178,2]
[379419223,1755273046643,-460.0,0.00019178,2]
[379419225,1755273046653,-503.33187321,0.00019178,2]
[379419227,1755273046663,-467.77,0.00019178,2]
[379419229,1755273046673,-460.0,0.00019178,2]
[379419231,1755273046683,-460.0,0.00019178,2]
[379419233,1755273046692,-460.0,0.00019178,2]
[379419235,1755273046701,-448.81742787,0.00019178,2]
[379419237,1755273046710,-460.0,0.00019178,2]
[379419239,1755273046720,-463.77544855,0.00019178,2]
[379419241,1755273046729,-462.5480471,0.00019178,2]
[379419243,1755273046738,-464.59593915,0.00019178,2]
[379419245,1755273046747,-461.79154528,0.00019178,2]
[379419247,1755273046756,-463.0194137,0.00019178,2]
[379419249,1755273046766,-460.0,0.00019178,2]
[379419251,1755273046775,-461.62506127,0.00019178,2]
[379419253,1755273046784,-463.44041525,0.00019178,2]
[379419255,1755273046795,-460.0,0.00019178,2]
[379419257,1755273046804,-460.68199187,0.00019178,2]
[379419259,1755273046814,-460.50048047,0.00019178,2]
[379419261,1755273046823,-460.0,0.00019178,2]
[379419263,1755273046832,-460.2429695,0.00019178,2]
[379419265,1755273046842,-572.45,0.00019178,2]
[379419267,1755273046852,-460.0,0.00019178,2]
[379419269,1755273046862,-461.40631053,0.00019178,2]
[379419271,1755273046871,-460.0,0.00019178,2]
[379419273,1755273046883,-463.41740911,0.00019178,2]
[379419275,1755273046892,-460.0,0.00019178,2]
[379419277,1755273046901,-460.0,0.00019178,2]
[379419279,1755273046911,-461.40417511,0.00019178,2]
[379419281,1755273046920,-460.0,0.00019178,2]
[379419283,1755273046929,-460.0,0.00019178,2]
[379419284,1755273046939,-462.29242815,0.00019178,2]
[379419287,1755273046949,-463.02299111,0.00019178,2]
[379419288,1755273046958,-461.47963557,0.00019178,2]
[379419290,1755273046969,-506.96849141,0.00019178,2]
[379419292,1755273046983,-462.3217943,0.00019178,2]
[379419294,1755273046993,-445.50639448,0.00019178,2]
[379419297,1755273047003,-460.0,0.00019178,2]
[379419301,1755273047015,-460.5894521,0.00019178,2]
[379419302,1755273047025,-463.84183804,0.00019178,2]
[379419306,1755273047035,-462.111769,0.00019178,2]
[379419308,1755273047044,-460.0,0.00019178,2]
[379419311,1755273047058,-606.63618261,0.00019178,2]
[379419314,1755273047067,-460.45699337,0.00019178,2]
[379419316,1755273047077,-460.1486063,0.00019178,2]
[379419318,1755273047086,-460.0,0.00019178,2]
[379419320,1755273047095,-460.0,0.00019178,2]
[379419322,1755273047105,-461.32674324,0.00019178,2]
[379419324,1755273047115,-460.0,0.00019178,2]
[379419326,1755273047124,-461.56037808,0.00019178,2]
[379419327,1755273047134,-455.0,0.00019178,2]
[379419329,1755273047143,-460.0,0.00019178,2]
[379419331,1755273047152,-460.0,0.00019178,2]